bitfinex-derivatives/quotes_BTCF0:USTF0_20241015
["timestamp","ask_amount","ask_price","bid_price","bid_amount"]
[1728984174216,0.002,65728.0,65727.0,0.80081683]
[1728984174812,0.002,65728.0,65727.0,0.44001683]
[1728984175012,0.002,65728.0,65727.0,0.80081683]
[1728984175718,0.04041769,65732.0,65727.0,0.80081683]
[1728984175914,0.04041769,65732.0,65731.0,0.076494]
[1728984176110,0.04041769,65732.0,65731.0,0.18667787]
[1728984177520,0.04141769,65732.0,65731.0,0.18667787]
[1728984178016,0.04041769,65732.0,65731.0,0.18667787]
[1728984178321,0.04141769,65732.0,65731.0,0.18967787]
[1728984178511,0.04241769,65732.0,65731.0,0.18967787]
[1728984179716,0.16241769,65732.0,65731.0,0.18967787]
[1728984180018,0.16141769,65732.0,65731.0,0.21741251]
[1728984180212,0.16241769,65732.0,65731.0,0.22041251]
[1728984181617,0.16241769,65732.0,65731.0,0.18619458]
[1728984181821,0.16241769,65732.0,65731.0,0.29611814]
[1728984182612,0.16241769,65732.0,65731.0,0.11022864]
[1728984182815,0.27580184,65732.0,65731.0,0.11022864]
[1728984183014,0.42747387,65732.0,65731.0,0.11022864]
[1728984183322,0.27580184,65732.0,65731.0,0.11022864]
[1728984187129,0.22908646,65732.0,65731.0,0.11022864]
[1728984187329,0.22908452,65732.0,65731.0,0.11022864]
[1728984190422,0.18866683,65732.0,65731.0,0.11022864]
[1728984190930,0.122,65732.0,65731.0,0.35084761]
[1728984191426,0.002,65732.0,65731.0,0.35084761]
[1728984192211,0.002,65732.0,65731.0,0.3506377]
[1728984196923,0.002,65732.0,65731.0,0.3508576]
[1728984197915,0.076092,65733.0,65732.0,0.076093]
[1728984198115,0.14275789,65733.0,65732.0,0.076093]
[1728984198324,0.14275789,65733.0,65732.0,0.076493]
[1728984199831,0.22776403,65733.0,65732.0,0.076493]
[1728984200020,0.34114328,65733.0,65732.0,0.076493]
[1728984200223,0.18947125,65733.0,65732.0,0.076493]
[1728984200427,0.19047125,65733.0,65732.0,0.079493]
[1728984200624,0.19147125,65733.0,65732.0,0.083493]
[1728984200824,0.22984203,65733.0,65732.0,0.083493]
[1728984201024,0.34322128,65733.0,65732.0,0.083493]
[1728984203028,0.46322128,65733.0,65732.0,0.083493]
[1728984203321,0.31147125,65733.0,65732.0,0.083493]
[1728984203624,0.26475789,65733.0,65732.0,0.083493]
[1728984206131,0.198092,65733.0,65732.0,0.32420977]
[1728984206737,0.198092,65733.0,65732.0,0.32415293]
[1728984212926,0.26475703,65733.0,65732.0,0.083493]
[1728984214323,0.31146977,65733.0,65732.0,0.083493]
[1728984215229,0.23537777,65733.0,65732.0,0.083493]
[1728984215537,0.06866503,65733.0,65732.0,0.133193]
[1728984219346,0.03139715,65733.0,65732.0,0.133193]
[1728984221138,0.07608,65743.0,65742.0,0.076081]
[1728984221445,0.0532,65748.0,65743.0,0.076079]
[1728984221636,0.436879,65745.0,65744.0,0.10973663]
[1728984221935,0.436879,65745.0,65744.0,0.18581563]
[1728984223740,0.436879,65745.0,65744.0,0.19081563]
[1728984224039,0.076079,65745.0,65744.0,0.19081563]
[1728984224439,0.076079,65745.0,65744.0,0.28212011]
[1728984224641,0.076079,65745.0,65744.0,0.19081563]
[1728984225029,0.0532,65748.0,65745.0,0.076078]
[1728984225241,1.8608,65751.0,65745.0,0.076078]
[1728984225242,0.0004,65746.0,65745.0,0.67640925]
[1728984225441,0.0004,65746.0,65745.0,0.72900925]
[1728984226035,0.0004,65746.0,65745.0,0.7283563]
[1728984226237,0.0004,65746.0,65745.0,0.7293563]
[1728984226537,0.0004,65746.0,65745.0,0.7313563]
[1728984226858,0.196476,65746.0,65745.0,0.6787563]
[1728984227142,0.196476,65746.0,65745.0,0.54907475]
[1728984228043,0.196476,65746.0,65745.0,0.440278]
[1728984229744,0.196476,65746.0,65745.0,0.48586305]
[1728984230344,0.196476,65746.0,65745.0,0.12506305]
[1728984231142,0.1204,65746.0,65745.0,0.12506305]
[1728984231340,0.1204,65746.0,65745.0,0.079478]
[1728984236051,0.22586722,65746.0,65745.0,0.079478]
[1728984238335,0.14979122,65746.0,65745.0,0.079478]
[1728984238846,0.18705151,65746.0,65745.0,0.079478]
[1728984239449,0.38312751,65746.0,65745.0,0.0034]
[1728984239639,0.22586722,65746.0,65745.0,0.0034]
[1728984241241,0.26313013,65746.0,65745.0,0.0034]
[1728984241442,0.22586722,65746.0,65745.0,0.0034]
[1728984241953,0.26312886,65746.0,65745.0,0.0034]
[1728984242342,0.22586722,65746.0,65745.0,0.079478]
[1728984243043,0.196476,65746.0,65745.0,0.079478]
[1728984245547,0.076476,65746.0,65745.0,0.079478]
[1728984245742,0.196476,65746.0,65745.0,0.079478]
[1728984246639,0.196476,65746.0,65745.0,0.0034]
[1728984248148,0.196476,65746.0,65745.0,0.079478]
[1728984250246,0.196476,65746.0,65745.0,0.15545308]
[1728984250743,0.196476,65746.0,65745.0,0.079478]
[1728984250943,0.557276,65746.0,65745.0,0.0034]
[1728984251246,0.076083,65740.0,65738.0,0.0106]
[1728984251449,0.076086,65738.0,65737.0,0.0035]
[1728984251751,0.07609,65734.0,65733.0,0.076091]
[1728984251949,0.26274491,65734.0,65733.0,0.076091]
[1728984252144,0.076091,65733.0,65732.0,0.0004]
[1728984252344,0.18945906,65733.0,65732.0,0.0004]
[1728984252653,0.32579539,65733.0,65732.0,0.0004]
[1728984253044,0.18945906,65733.0,65732.0,0.0004]
[1728984253243,0.32570009,65733.0,65732.0,0.0004]
[1728984253446,0.32570009,65733.0,65732.0,0.076493]
[1728984253447,0.32571077,65733.0,65732.0,0.076493]
[1728984253641,0.32671077,65733.0,65732.0,0.079493]
[1728984254550,0.19046974,65733.0,65732.0,0.079493]
[1728984254758,0.19146974,65733.0,65732.0,0.081493]
[1728984254959,0.1074884,65733.0,65732.0,0.081493]
[1728984255259,0.1074884,65733.0,65732.0,0.0054]
[1728984256153,0.1074884,65733.0,65732.0,0.081493]
[1728984258253,0.078091,65733.0,65732.0,0.19080617]
[1728984258951,0.002,65733.0,65732.0,0.19080617]
[1728984260763,0.198091,65733.0,65732.0,0.19080617]
[1728984261147,0.2647863,65733.0,65732.0,0.24497321]
[1728984261356,0.27040126,65733.0,65732.0,0.11471317]
[1728984261955,1.77040126,65733.0,65732.0,0.03401317]
[1728984262157,0.076093,65732.0,65731.0,0.07637173]
[1728984262457,0.128393,65732.0,65731.0,0.0004]
[1728984262662,0.128393,65732.0,65731.0,0.07637173]
[1728984262867,0.128393,65732.0,65731.0,0.0004]
[1728984263162,0.076093,65732.0,65731.0,0.0004]
[1728984263364,0.077093,65732.0,65731.0,0.1214]
[1728984263766,0.197093,65732.0,65731.0,0.0014]
[1728984263959,0.198093,65732.0,65731.0,0.0034]
[1728984264373,0.078093,65732.0,65731.0,0.0034]
[1728984264657,0.002,65732.0,65731.0,0.29065219]
[1728984264856,0.002,65732.0,65731.0,0.199494]
[1728984265250,0.002,65732.0,65731.0,0.079494]
[1728984266170,0.0004,65733.0,65732.0,0.076093]
[1728984266371,0.0004,65733.0,65732.0,0.557293]
[1728984266664,0.0004,65733.0,65732.0,0.68536696]
[1728984267061,1.5004,65733.0,65732.0,0.557293]
[1728984267456,1.5024,65733.0,65732.0,0.560293]
[1728984268257,0.0024,65733.0,65732.0,0.560293]
[1728984268761,1.5024,65733.0,65732.0,0.560293]
[1728984270863,1.5024,65733.0,65732.0,0.68841027]
[1728984271561,1.5024,65733.0,65732.0,0.32761027]
[1728984271758,1.5024,65733.0,65732.0,0.199493]
[1728984271966,0.0024,65733.0,65732.0,0.079493]
[1728984272154,0.0024,65733.0,65732.0,0.199493]
[1728984274767,0.0024,65733.0,65732.0,0.079493]
[1728984274961,0.0024,65733.0,65732.0,0.199493]
[1728984277668,0.0024,65733.0,65732.0,0.560293]
[1728984280270,1.44909888,65735.0,65734.0,0.07609]
[1728984280467,0.12,65742.0,65734.0,0.50657669]
[1728984280773,0.076081,65742.0,65741.0,0.10680249]
[1728984281073,0.076081,65742.0,65741.0,0.38462255]
[1728984281368,1.5,65742.0,65741.0,0.38462255]
[1728984281570,1.5,65742.0,65741.0,0.43532255]
[1728984281760,0.0004,65743.0,65742.0,0.076081]
[1728984281961,0.0004,65743.0,65742.0,0.31099695]
[1728984282162,0.0004,65743.0,65742.0,0.31048749]
[1728984283165,0.0004,65743.0,65742.0,0.31348749]
[1728984283367,0.0014,65743.0,65742.0,0.31748749]
[1728984285069,0.1214,65743.0,65742.0,0.31748749]
[1728984285370,0.1214,65743.0,65742.0,0.24092596]
[1728984285371,0.31748,65743.0,65742.0,0.24092596]
[1728984285573,0.31748,65743.0,65742.0,0.11415665]
[1728984285574,0.53788,65743.0,65742.0,0.11415665]
[1728984285866,0.53788,65743.0,65734.0,0.0004]
[1728984285867,0.076089,65735.0,65734.0,0.0004]
[1728984286068,2.176889,65735.0,65734.0,0.0004]
[1728984287567,2.177889,65735.0,65734.0,0.0044]
[1728984287762,2.117889,65735.0,65734.0,0.0044]
[1728984289672,2.118889,65735.0,65734.0,0.0044]
[1728984294272,2.298889,65735.0,65734.0,0.0044]
[1728984297369,1.938089,65735.0,65734.0,0.0044]
[1728984297565,2.298889,65735.0,65734.0,0.0044]
[1728984299571,2.118889,65735.0,65734.0,0.0044]
[1728984301267,0.002,65735.0,65734.0,0.18598844]
[1728984301463,0.02682745,65736.0,65734.0,0.10989844]
[1728984301776,1.756086,65738.0,65736.0,0.076088]
[1728984302080,1.756086,65738.0,65737.0,0.15699844]
[1728984302577,1.78306017,65738.0,65737.0,0.0515]
[1728984303169,1.78406017,65738.0,65737.0,0.0515]
[1728984303570,1.78306017,65738.0,65737.0,0.0515]
[1728984303774,1.78406017,65738.0,65737.0,0.0525]
[1728984304180,1.78506017,65738.0,65737.0,0.0525]
[1728984306075,1.78506017,65738.0,65737.0,0.0014]
[1728984306388,0.076094,65731.0,65729.0,0.0035]
[1728984306573,0.076094,65731.0,65728.0,0.0531]
[1728984306574,0.076096,65729.0,65728.0,0.0531]
[1728984306882,0.10639128,65729.0,65728.0,0.0531]
[1728984307575,0.14366553,65729.0,65728.0,0.0531]
[1728984307776,0.14366553,65729.0,65728.0,0.0541]
[1728984307979,0.14466553,65729.0,65728.0,0.0541]
[1728984309185,0.10839128,65729.0,65728.0,0.0551]
[1728984309398,0.1078822,65729.0,65728.0,0.0551]
[1728984310386,0.078096,65729.0,65728.0,0.0551]
[1728984310678,0.078096,65729.0,65728.0,0.16068476]
[1728984310986,0.078096,65729.0,65728.0,0.23668237]
[1728984310987,0.002,65729.0,65728.0,0.23668237]
[1728984311282,0.28325637,65737.0,65735.0,0.076089]
[1728984311584,0.20375637,65737.0,65736.0,0.076088]
[1728984311784,0.20375637,65737.0,65736.0,0.27305629]
[1728984311974,0.176587,65737.0,65736.0,0.27305629]
[1728984312177,0.176587,65737.0,65736.0,0.18197337]
[1728984313386,1.676587,65737.0,65736.0,0.30737375]
[1728984313576,1.677587,65737.0,65736.0,0.30838317]
[1728984313779,1.677587,65737.0,65736.0,0.10688537]
[1728984313976,1.678587,65737.0,65736.0,0.10769111]
[1728984314174,1.678587,65737.0,65736.0,0.2332121]
[1728984315480,1.678587,65737.0,65736.0,0.3093001]
[1728984315779,1.678587,65737.0,65736.0,0.2332121]
[1728984317380,1.678587,65737.0,65736.0,0.10769111]
[1728984317782,1.678587,65737.0,65736.0,0.18377911]
[1728984318380,1.678587,65737.0,65736.0,0.078488]
[1728984319681,1.6025,65737.0,65736.0,0.078488]
[1728984319886,0.002,65737.0,65736.0,0.31929237]
[1728984320082,0.0004,65742.0,65741.0,0.076082]
[1728984320284,0.0004,65742.0,65741.0,0.12208049]
[1728984321291,0.0004,65742.0,65741.0,0.076482]
[1728984322595,0.0014,65742.0,65741.0,0.079482]
[1728984322783,0.0024,65742.0,65741.0,0.081482]
[1728984323183,0.0024,65742.0,65741.0,0.132982]
[1728984324080,0.078481,65742.0,65741.0,0.0054]
[1728984324994,1.578481,65742.0,65741.0,0.0054]
[1728984325490,1.64609497,65742.0,65741.0,0.0054]
[1728984327290,1.60882654,65742.0,65741.0,0.0054]
[1728984328589,1.63581303,65742.0,65741.0,0.0054]
[1728984329192,1.60882654,65742.0,65741.0,0.0054]
[1728984329786,1.96962654,65742.0,65741.0,0.0054]
[1728984330499,1.60882654,65742.0,65741.0,0.0054]
[1728984330800,1.96962654,65742.0,65741.0,0.0054]
[1728984333297,0.076091,65733.0,65713.0,0.3608]
[1728984333493,0.5408,65727.0,65720.0,0.10636544]
[1728984333687,0.5408,65727.0,65721.0,0.1259994]
[1728984333688,0.076102,65724.0,65721.0,0.1259994]
[1728984333883,0.3608,65727.0,65722.0,0.23170699]
[1728984333884,1.5,65723.0,65722.0,0.23170699]
[1728984334093,1.576103,65723.0,65722.0,0.23170699]
[1728984334899,1.756103,65723.0,65722.0,0.23170699]
[1728984335697,1.68,65723.0,65722.0,0.30781099]
[1728984335894,1.681,65723.0,65722.0,0.30781099]
[1728984336093,1.681,65723.0,65722.0,0.18181159]
[1728984336094,1.501,65723.0,65722.0,0.18181159]
[1728984336298,1.502,65723.0,65722.0,0.18181159]
[1728984336693,0.002,65723.0,65722.0,0.18181159]
[1728984337801,0.002,65723.0,65722.0,0.18130238]
[1728984338004,0.43689,65735.0,65722.0,0.18130238]
[1728984338005,0.3608,65735.0,65722.0,1.46707614]
[1728984338203,0.3608,65735.0,65734.0,0.07649]
[1728984338395,0.3608,65735.0,65734.0,0.18168838]
[1728984339303,0.3618,65735.0,65734.0,0.18168838]
[1728984340100,0.001,65735.0,65734.0,0.18168838]
[1728984340301,0.002,65735.0,65734.0,0.18168838]
[1728984341006,0.002,65735.0,65734.0,0.30660156]
[1728984341396,0.002,65735.0,65734.0,0.18168838]
[1728984341592,0.001,65735.0,65734.0,0.18168838]
[1728984341793,0.001,65735.0,65734.0,0.30663953]
[1728984341997,0.001,65735.0,65734.0,0.18168838]
[1728984342206,0.002,65735.0,65734.0,0.18368838]
[1728984342606,0.002,65735.0,65734.0,0.18331575]
[1728984343204,0.002,65735.0,65734.0,0.10722575]
[1728984343405,0.616889,65735.0,65734.0,0.19840137]
[1728984343908,0.616889,65735.0,65734.0,0.10722575]
[1728984343909,1.936889,65735.0,65734.0,0.10722575]
[1728984344908,1.936889,65735.0,65734.0,0.19840137]
[1728984345405,1.936889,65735.0,65734.0,0.10722575]
[1728984345406,2.116889,65735.0,65734.0,0.10722575]
[1728984345602,2.116889,65735.0,65734.0,0.19840137]
[1728984345806,1.936889,65735.0,65734.0,0.10722575]
[1728984347310,1.936889,65735.0,65734.0,0.10712908]
[1728984347909,1.936889,65735.0,65734.0,0.23195546]
[1728984348215,1.936889,65735.0,65734.0,0.19829373]
[1728984348438,1.936889,65735.0,65734.0,0.10712908]
[1728984348715,1.60728919,65735.0,65734.0,0.0024]
[1728984350112,1.64455754,65735.0,65734.0,0.0024]
[1728984351418,1.82455754,65735.0,65734.0,0.0024]
[1728984351711,0.076103,65723.0,65705.0,0.3608]
[1728984351909,0.076113,65714.0,65713.0,0.0512]
[1728984352112,0.10666102,65714.0,65713.0,0.0512]
[1728984352307,0.03054802,65714.0,65713.0,0.0512]
[1728984352511,1.53054802,65714.0,65713.0,0.0512]
[1728984352812,1.60666102,65714.0,65713.0,0.0512]
[1728984353006,1.60766102,65714.0,65713.0,0.0532]
[1728984355404,1.578113,65714.0,65713.0,0.129315]
[1728984355610,1.578113,65714.0,65713.0,0.23448329]
[1728984356617,0.002,65714.0,65713.0,1.59634137]
[1728984356806,0.0106,65721.0,65718.0,0.076109]
[1728984356807,0.076107,65720.0,65718.0,0.076109]
[1728984357012,0.076107,65720.0,65719.0,0.71761437]
[1728984357317,1.68,65722.0,65720.0,0.076106]
[1728984357517,1.68,65722.0,65721.0,0.23090637]
[1728984357712,0.18,65722.0,65721.0,0.23090637]
[1728984357910,0.256104,65722.0,65721.0,0.23090637]
[1728984358911,1.5,65723.0,65722.0,0.076104]
[1728984359119,0.076101,65726.0,65722.0,0.10555985]
[1728984359422,0.256101,65726.0,65725.0,0.0004]
[1728984359619,1.756101,65726.0,65725.0,0.10555985]
[1728984360306,1.757101,65726.0,65725.0,0.10555985]
[1728984360815,1.758101,65726.0,65725.0,0.11141247]
[1728984363516,1.758101,65726.0,65725.0,0.0064]
[1728984367026,0.258101,65726.0,65725.0,0.0064]
[1728984368117,0.258101,65726.0,65725.0,0.0582]
[1728984369325,0.002,65726.0,65725.0,0.134301]
[1728984369518,0.002,65726.0,65725.0,0.186001]
[1728984370518,0.002,65726.0,65725.0,0.29093365]
[1728984370718,0.002,65726.0,65725.0,0.41600935]
[1728984372927,0.182,65726.0,65725.0,0.33990835]
[1728984373131,0.182,65726.0,65725.0,0.41600935]
[1728984373339,0.076096,65729.0,65725.0,0.41600935]
[1728984373535,0.076096,65729.0,65728.0,0.0004]
[1728984373833,0.076096,65729.0,65728.0,0.10533265]
[1728984374022,0.076096,65729.0,65728.0,0.19651034]
[1728984374327,0.076096,65729.0,65728.0,0.10533265]
[1728984374530,0.257096,65729.0,65728.0,0.10533265]
[1728984374920,0.257096,65729.0,65728.0,0.1965118]
[1728984375134,1.757096,65729.0,65728.0,0.10533265]
[1728984375631,1.758096,65729.0,65728.0,0.10533265]
[1728984376229,1.757096,65729.0,65728.0,0.10933265]
[1728984376431,1.758096,65729.0,65728.0,0.11133265]
[1728984377436,1.758096,65729.0,65728.0,0.23622275]
[1728984377931,1.758096,65729.0,65728.0,0.11133265]
[1728984378528,1.758096,65729.0,65728.0,0.0064]
[1728984380435,1.78930884,65729.0,65728.0,0.0064]
[1728984380730,1.71321284,65729.0,65728.0,0.0064]
[1728984380934,1.502,65729.0,65728.0,0.082497]
[1728984382035,1.578096,65729.0,65728.0,0.082497]
[1728984383033,1.578096,65729.0,65728.0,0.0064]
[1728984383740,1.60946484,65729.0,65728.0,0.0064]
[1728984384132,1.60948428,65729.0,65728.0,0.0064]
[1728984385037,1.97028428,65729.0,65728.0,0.0064]
[1728984385226,2.01758428,65729.0,65725.0,0.0004]
[1728984385427,0.2561,65726.0,65722.0,0.0004]
[1728984385626,0.256103,65723.0,65722.0,0.0004]
[1728984385836,0.256103,65723.0,65722.0,0.10546697]
[1728984386041,0.256103,65723.0,65722.0,0.23071355]
[1728984387337,0.257103,65723.0,65722.0,0.23471355]
[1728984387936,0.257103,65723.0,65722.0,0.10946697]
[1728984388436,0.257103,65723.0,65722.0,0.0044]
[1728984388638,0.257103,65723.0,65722.0,0.23475365]
[1728984389643,0.258103,65723.0,65722.0,0.10949018]
[1728984390139,0.258103,65723.0,65722.0,0.23491495]
[1728984391136,0.28573171,65723.0,65722.0,0.23491495]
[1728984392143,0.28573171,65723.0,65722.0,0.16059018]
[1728984392842,0.258103,65723.0,65722.0,0.16059018]
[1728984393742,0.258103,65723.0,65722.0,0.0555]
[1728984397038,0.258103,65723.0,65722.0,0.0044]
[1728984397543,0.618903,65723.0,65722.0,0.0044]
[1728984397735,0.64918771,65723.0,65722.0,0.0044]
[1728984400331,0.64914824,65723.0,65722.0,0.0044]
[1728984400844,0.618903,65723.0,65722.0,0.0044]
[1728984401043,0.618903,65723.0,65722.0,0.08040691]
[1728984401637,0.618903,65723.0,65722.0,0.0044]
[1728984401943,0.618903,65723.0,65722.0,0.08040691]
[1728984402139,0.618903,65723.0,65722.0,0.18587274]
[1728984402336,0.618903,65723.0,65722.0,0.10986583]
[1728984405851,0.618903,65723.0,65722.0,0.18585068]
[1728984406544,0.618903,65723.0,65722.0,0.08038485]
[1728984407147,0.618903,65723.0,65722.0,0.10991884]
[1728984407544,0.618903,65723.0,65722.0,0.18590038]
[1728984407951,0.618903,65723.0,65722.0,0.18583005]
[1728984408345,0.618903,65723.0,65722.0,0.18582871]
[1728984408651,0.618903,65723.0,65722.0,0.0044]
[1728984408854,0.798903,65723.0,65722.0,0.04559203]
[1728984409156,0.076116,65712.0,65711.0,0.02710498]
[1728984409450,0.076119,65709.0,65703.0,0.0508]
[1728984409652,0.616925,65704.0,65703.0,0.0508]
[1728984410954,0.617925,65704.0,65703.0,0.0508]
[1728984411542,0.617925,65704.0,65697.0,0.02749978]
[1728984411543,0.797925,65704.0,65697.0,0.02749978]
[1728984411742,0.796932,65698.0,65694.0,0.0508]
[1728984411961,0.256135,65695.0,65694.0,0.0508]
[1728984413141,0.257135,65695.0,65694.0,0.0508]
[1728984413958,0.257135,65695.0,65694.0,0.07853562]
[1728984414856,0.077135,65695.0,65694.0,0.07853562]
[1728984415153,0.078135,65695.0,65694.0,0.25853562]
[1728984420061,0.078135,65695.0,65694.0,0.07853562]
[1728984422057,0.078135,65695.0,65694.0,0.0508]
[1728984422263,0.076137,65694.0,65693.0,0.0516]
[1728984422563,0.076139,65692.0,65691.0,0.3608]
[1728984423656,0.076139,65692.0,65691.0,0.43678592]
[1728984423866,0.077139,65692.0,65691.0,0.43678592]
[1728984424065,0.077139,65692.0,65690.0,0.07598592]
[1728984424262,0.077139,65692.0,65685.0,0.053]
[1728984424263,1.5,65691.0,65689.0,0.07598592]
[1728984424569,1.5,65691.0,65685.0,0.053]
[1728984424570,0.076146,65686.0,65685.0,0.053]
[1728984424863,0.076141,65690.0,65685.0,0.15830307]
[1728984425068,0.076141,65690.0,65689.0,0.0004]
[1728984425969,0.076141,65690.0,65689.0,0.18105068]
[1728984426268,0.076141,65690.0,65689.0,0.10522504]
[1728984426466,0.077141,65690.0,65689.0,0.10522504]
[1728984428361,0.078141,65690.0,65689.0,0.10522504]
[1728984428971,1.5,65691.0,65689.0,0.55701114]
[1728984429265,1.5,65691.0,65690.0,0.37598813]
[1728984429569,0.076136,65695.0,65690.0,0.1804]
[1728984429771,0.076136,65695.0,65694.0,0.1804]
[1728984430163,1.576136,65695.0,65694.0,0.28490976]
[1728984430660,1.577136,65695.0,65694.0,0.28490976]
[1728984432171,1.577136,65695.0,65694.0,0.16280976]
[1728984432368,1.577136,65695.0,65694.0,0.10490976]
[1728984432672,1.578136,65695.0,65694.0,0.10690976]
[1728984433869,1.578136,65695.0,65694.0,0.19789793]
[1728984434257,1.578136,65695.0,65694.0,0.10690976]
[1728984434467,1.578136,65695.0,65694.0,0.23154295]
[1728984434767,1.578136,65695.0,65694.0,0.1070154]
[1728984436178,1.578136,65695.0,65694.0,0.23169997]
[1728984436367,0.078136,65695.0,65694.0,0.1070154]
[1728984436672,0.078136,65695.0,65694.0,0.23179347]
[1728984436868,1.578136,65695.0,65694.0,0.23179347]
[1728984437973,1.60933076,65695.0,65694.0,0.0024]
[1728984438579,1.64661956,65695.0,65694.0,0.0024]
[1728984438968,0.03319476,65695.0,65694.0,0.21013579]
[1728984439166,0.03319476,65695.0,65694.0,0.08043579]
[1728984439167,0.076135,65695.0,65694.0,0.08043579]
[1728984441181,0.03728613,65695.0,65694.0,0.51737279]
[1728984442669,0.03728613,65695.0,65694.0,0.15657279]
[1728984442877,0.03728613,65695.0,65694.0,0.51737279]
[1728984443076,0.0106,65700.0,65694.0,0.51737279]
[1728984443077,0.08673,65700.0,65697.0,0.076132]
[1728984443380,0.07613,65700.0,65699.0,0.1804]
[1728984443970,0.0141,65707.0,65699.0,1.23704]
[1728984443971,0.15062035,65707.0,65699.0,1.23704]
[1728984444167,0.076122,65707.0,65706.0,0.18]
[1728984444367,0.076122,65707.0,65706.0,0.1804]
[1728984445977,0.076122,65707.0,65706.0,0.41224136]
[1728984446175,0.078122,65707.0,65706.0,0.41224136]
[1728984446481,0.078122,65707.0,65706.0,0.51709922]
[1728984446873,0.078122,65707.0,65706.0,0.41224275]
[1728984448579,0.078122,65707.0,65706.0,0.2872571]
[1728984448785,0.078122,65707.0,65706.0,0.41210239]
[1728984449087,0.002,65707.0,65706.0,0.41210239]
[1728984449290,0.00228306,65711.0,65706.0,0.41210239]
[1728984449479,0.07612,65708.0,65707.0,0.22968687]
[1728984451884,0.07712,65708.0,65707.0,0.22968687]
[1728984452980,0.076122,65707.0,65706.0,0.02820059]
[1728984453183,0.24287051,65707.0,65706.0,0.02820059]
[1728984453387,0.32114645,65707.0,65706.0,0.02820059]
[1728984453682,0.35837661,65707.0,65706.0,0.02820059]
[1728984454289,0.35729775,65707.0,65706.0,0.02820059]
[1728984454586,0.35829775,65707.0,65706.0,0.02820059]
[1728984455173,0.35929775,65707.0,65706.0,0.02820059]
[1728984455688,0.19254924,65707.0,65706.0,0.02820059]
[1728984458987,0.11642724,65707.0,65706.0,0.02820059]
[1728984459190,0.13650009,65710.0,65706.0,1.64168359]
[1728984459390,0.13648039,65710.0,65709.0,0.196119]
[1728984459695,0.076115,65713.0,65711.0,0.076116]
[1728984459987,0.076115,65713.0,65712.0,0.5345]
[1728984460882,0.27165541,65718.0,65712.0,0.84280555]
[1728984461188,0.27165541,65718.0,65713.0,0.23218955]
[1728984461383,0.27165541,65718.0,65717.0,0.0004]
[1728984461384,0.34776441,65718.0,65717.0,0.0004]
[1728984461585,0.34776441,65718.0,65717.0,0.23258955]
[1728984461989,0.34876441,65718.0,65717.0,0.23258955]
[1728984462885,0.34876441,65718.0,65717.0,0.23500484]
[1728984463092,0.34976441,65718.0,65717.0,0.23700484]
[1728984464092,0.34976441,65718.0,65717.0,0.26506679]
[1728984466883,0.34976441,65718.0,65717.0,0.23700484]
[1728984467094,0.39866441,65718.0,65717.0,0.1105172]
[1728984467296,0.127009,65718.0,65717.0,0.1105172]
[1728984467591,0.127009,65718.0,65717.0,0.18683056]
[1728984467592,0.247009,65718.0,65717.0,0.18683056]
[1728984467795,0.247009,65718.0,65717.0,0.0044]
[1728984467991,0.076115,65713.0,65712.0,0.0004]
[1728984468296,0.59419745,65713.0,65712.0,0.0004]
[1728984468594,0.64092847,65713.0,65712.0,0.0004]
[1728984468803,0.76092847,65713.0,65709.0,0.0004]
[1728984468999,0.076122,65707.0,65706.0,0.0004]
[1728984469184,0.39226302,65707.0,65706.0,0.0004]
[1728984469386,0.39226302,65707.0,65699.0,0.0004]
[1728984469387,0.07613,65700.0,65699.0,0.0004]
[1728984469592,0.26282245,65700.0,65699.0,0.0004]
[1728984470097,1.80956045,65700.0,65699.0,0.0004]
[1728984470599,2.42680599,65700.0,65699.0,0.0004]
[1728984470798,2.29036045,65700.0,65699.0,0.0004]
[1728984471388,1.92956045,65700.0,65699.0,0.0004]
[1728984471586,1.93056045,65700.0,65699.0,0.0004]
[1728984471786,1.87056045,65700.0,65699.0,0.0004]
[1728984472495,1.87156045,65700.0,65699.0,0.0004]
[1728984472801,2.00795351,65700.0,65699.0,0.0004]
[1728984473188,1.87156045,65700.0,65699.0,0.0004]
[1728984473393,2.00792637,65700.0,65699.0,0.0004]
[1728984474399,2.00789918,65700.0,65699.0,0.0004]
[1728984474991,1.87156045,65700.0,65699.0,0.0004]
[1728984475604,2.00787579,65700.0,65699.0,0.0004]
[1728984475901,1.75813,65700.0,65699.0,0.10740388]
[1728984476790,1.75813,65700.0,65699.0,0.10738718]
[1728984478194,0.25813,65700.0,65699.0,0.10738718]
[1728984480899,0.25813,65700.0,65699.0,0.10737624]
[1728984482301,0.25813,65700.0,65699.0,0.18325274]
[1728984483013,0.25813,65700.0,65691.0,0.03048982]
[1728984483014,0.076139,65692.0,65691.0,0.03048982]
[1728984483206,0.30287886,65692.0,65691.0,0.02698982]
[1728984483394,0.36958258,65692.0,65689.0,0.076542]
[1728984483598,0.14284372,65691.0,65690.0,0.38813292]
[1728984484993,0.14284384,65691.0,65690.0,0.38813292]
[1728984485397,0.14384384,65691.0,65690.0,0.38813292]
[1728984485907,0.14484384,65691.0,65690.0,0.3612]
[1728984486098,0.19158655,65691.0,65690.0,0.0004]
[1728984486298,0.32774079,65691.0,65690.0,0.0004]
[1728984488202,0.32767132,65691.0,65690.0,0.0004]
[1728984488399,0.19158655,65691.0,65690.0,0.0004]
[1728984488702,0.32765351,65691.0,65690.0,0.0004]
[1728984489003,0.19158655,65691.0,65690.0,0.0004]
[1728984491309,0.07814,65691.0,65690.0,0.10737777]
[1728984491504,0.07814,65691.0,65690.0,0.0004]
[1728984492002,0.002,65691.0,65690.0,0.10739572]
[1728984492602,0.002,65691.0,65690.0,0.10745486]
[1728984493004,0.07814,65691.0,65690.0,0.10745486]
[1728984493916,0.19814,65691.0,65690.0,0.10745486]
[1728984495210,0.19814,65691.0,65690.0,0.0004]
[1728984498936,0.12,65691.0,65690.0,0.38287089]
[1728984499922,0.19614,65691.0,65690.0,0.38287089]
[1728984501225,0.19614,65691.0,65690.0,0.23484868]
[1728984504020,0.07614,65691.0,65690.0,0.74308515]
[1728984504323,0.3608,65696.0,65690.0,0.81922615]